[Event "Live Chess"]
[Site "Chess.com"]
[Date "2023.05.21"]
[Round "-"]
[White "epicali2010"]
[Black "stevochess11"]
[Result "1/2-1/2"]
[WhiteElo "933"]
[BlackElo "1690"]
[TimeControl "300"]
[EndTime "6:51:51 PDT"]
[Termination "Game drawn - insufficient material"]

1. c4 {[%clk 0:04:50.5]} 1... c5 {[%clk 0:04:53]} 2. Nc3 {[%clk 0:04:50.4]} 2...
Nf6 {[%clk 0:04:50.1]} 3. g3 {[%clk 0:04:50.3]} 3... e6 {[%clk 0:04:48.4]} 4.
Bg2 {[%clk 0:04:46]} 4... Be7 {[%clk 0:04:47.2]} 5. e3 {[%clk 0:04:42]} 5... O-O
{[%clk 0:04:44.9]} 6. Nge2 {[%clk 0:04:41.5]} 6... d5 {[%clk 0:04:38.3]} 7. cxd5
{[%clk 0:04:39]} 7... exd5 {[%clk 0:04:37.1]} 8. O-O {[%clk 0:04:38.6]} 8... Nc6
{[%clk 0:04:34.7]} 9. Nf4 {[%clk 0:04:37.6]} 9... Be6 {[%clk 0:04:32.5]} 10.
Nxe6 {[%clk 0:04:35.1]} 10... fxe6 {[%clk 0:04:31.5]} 11. d4 {[%clk 0:04:35]}
11... cxd4 {[%clk 0:04:29.4]} 12. exd4 {[%clk 0:04:32.6]} 12... Rc8 {[%clk
0:04:27.2]} 13. Be3 {[%clk 0:04:31.2]} 13... Na5 {[%clk 0:04:24.2]} 14. Qa4
{[%clk 0:04:28]} 14... Nc4 {[%clk 0:04:21.5]} 15. b3 {[%clk 0:04:22.8]} 15...
Nxe3 {[%clk 0:04:15.3]} 16. fxe3 {[%clk 0:04:22.7]} 16... Rxc3 {[%clk
0:04:13.5]} 17. Qxa7 {[%clk 0:04:15.9]} 17... Rxe3 {[%clk 0:04:11]} 18. Qxb7
{[%clk 0:04:14.1]} 18... Ng4 {[%clk 0:04:03.5]} 19. Bh3 {[%clk 0:04:11.2]} 19...
h5 {[%clk 0:04:00.5]} 20. Qc6 {[%clk 0:04:05.9]} 20... Qd6 {[%clk 0:03:55]} 21.
Rxf8+ {[%clk 0:04:00.4]} 21... Bxf8 {[%clk 0:03:52.7]} 22. Qxd6 {[%clk 0:03:57]}
22... Bxd6 {[%clk 0:03:51.2]} 23. Bxg4 {[%clk 0:03:56.6]} 23... hxg4 {[%clk
0:03:49.6]} 24. a4 {[%clk 0:03:55.5]} 24... Rxb3 {[%clk 0:03:47.7]} 25. a5
{[%clk 0:03:54.5]} 25... Rb8 {[%clk 0:03:45.6]} 26. a6 {[%clk 0:03:53.2]} 26...
Ra8 {[%clk 0:03:43.9]} 27. Kf2 {[%clk 0:03:51.1]} 27... Kf7 {[%clk 0:03:39.6]}
28. Ke3 {[%clk 0:03:49.4]} 28... Ke7 {[%clk 0:03:38.7]} 29. Kd3 {[%clk
0:03:48.7]} 29... Kd7 {[%clk 0:03:37.8]} 30. Kc2 {[%clk 0:03:48.6]} 30... Kc7
{[%clk 0:03:36.6]} 31. Kb3 {[%clk 0:03:47.8]} 31... Kb6 {[%clk 0:03:35.6]} 32.
Rc1 {[%clk 0:03:35.6]} 32... Rxa6 {[%clk 0:03:33]} 33. Rc8 {[%clk 0:03:32.2]}
33... Ra3+ {[%clk 0:03:31.2]} 34. Kc2 {[%clk 0:03:29.6]} 34... Ra2+ {[%clk
0:03:30.2]} 35. Kd3 {[%clk 0:03:28.8]} 35... Rxh2 {[%clk 0:03:28.3]} 36. Rg8
{[%clk 0:03:26]} 36... Bxg3 {[%clk 0:03:26.3]} 37. Rxg7 {[%clk 0:03:25.9]} 37...
Rh4 {[%clk 0:03:24.2]} 38. Rg6 {[%clk 0:03:25.8]} 38... Kb5 {[%clk 0:03:18.4]}
39. Rxe6 {[%clk 0:03:25.7]} 39... Rh3 {[%clk 0:03:14.5]} 40. Ke2 {[%clk
0:03:20.6]} 40... Bf4 {[%clk 0:03:11.3]} 41. Rf6 {[%clk 0:03:16.5]} 41... Re3+
{[%clk 0:03:07.1]} 42. Kf2 {[%clk 0:03:14.7]} 42... Re4 {[%clk 0:03:05.9]} 43.
Rg6 {[%clk 0:03:10.4]} 43... Be3+ {[%clk 0:03:03.3]} 44. Kg3 {[%clk 0:03:08.4]}
44... Bxd4 {[%clk 0:03:01.6]} 45. Rxg4 {[%clk 0:03:08.3]} 45... Re3+ {[%clk
0:02:59.2]} 46. Kf2 {[%clk 0:03:05.6]} 46... Ra3+ {[%clk 0:02:48.5]} 47. Rxd4
{[%clk 0:03:03.6]} 47... Kc5 {[%clk 0:02:45.7]} 48. Rd1 {[%clk 0:03:02.1]} 48...
d4 {[%clk 0:02:44]} 49. Rb1 {[%clk 0:02:58.5]} 49... Kc4 {[%clk 0:02:42.4]} 50.
Ke2 {[%clk 0:02:57.4]} 50... Ra2+ {[%clk 0:02:35.9]} 51. Kd1 {[%clk 0:02:53.9]}
51... Kc3 {[%clk 0:02:29.6]} 52. Rb8 {[%clk 0:02:47.3]} 52... Ra4 {[%clk
0:02:18.3]} 53. Rc8+ {[%clk 0:02:45]} 53... Kd3 {[%clk 0:02:16.2]} 54. Kc1
{[%clk 0:02:39.7]} 54... Ra3 {[%clk 0:02:11.3]} 55. Rh8 {[%clk 0:02:32]} 55...
Rc3+ {[%clk 0:02:09.2]} 56. Kd1 {[%clk 0:02:28.7]} 56... Kc4 {[%clk 0:02:03]}
57. Rc8+ {[%clk 0:02:22.6]} 57... Kd3 {[%clk 0:01:57.1]} 58. Rh8 {[%clk
0:02:20.2]} 58... Kc4 {[%clk 0:01:50.1]} 59. Rc8+ {[%clk 0:02:18.4]} 59... Kb4
{[%clk 0:01:45.8]} 60. Rb8+ {[%clk 0:02:16.3]} 60... Ka3 {[%clk 0:01:42]} 61.
Ra8+ {[%clk 0:02:13.5]} 61... Kb2 {[%clk 0:01:40.1]} 62. Rb8+ {[%clk 0:02:09.3]}
62... Rb3 {[%clk 0:01:37.8]} 63. Rd8 {[%clk 0:02:07.4]} 63... d3 {[%clk
0:01:33.6]} 64. Kd2 {[%clk 0:02:02.7]} 64... Kb1 {[%clk 0:01:29.8]} 65. Rxd3
{[%clk 0:02:01]} 65... Rb2+ {[%clk 0:01:28.8]} 66. Ke3 {[%clk 0:01:59.7]} 66...
Rc2 {[%clk 0:01:27.2]} 67. Ke4 {[%clk 0:01:57.9]} 67... Re2+ {[%clk 0:01:25.4]}
68. Kd4 {[%clk 0:01:56.6]} 68... Kc2 {[%clk 0:01:24.3]} 69. Rh3 {[%clk
0:01:53.2]} 69... Kd2 {[%clk 0:01:22]} 70. Rd3+ {[%clk 0:01:51.1]} 70... Kc2
{[%clk 0:01:20.8]} 71. Rc3+ {[%clk 0:01:49.8]} 71... Kb2 {[%clk 0:01:19.5]} 72.
Rh3 {[%clk 0:01:48.6]} 72... Rd2+ {[%clk 0:01:17.9]} 73. Ke5 {[%clk 0:01:47.3]}
73... Rd1 {[%clk 0:01:15.5]} 74. Ke4 {[%clk 0:01:44.5]} 74... Re1+ {[%clk
0:01:13.9]} 75. Re3 {[%clk 0:01:41]} 75... Rxe3+ {[%clk 0:01:11.9]} 76. Kxe3
{[%clk 0:01:39.8]} 1/2-1/2

[Event "Live Chess"]
[Site "Chess.com"]
[Date "2023.05.21"]
[Round "-"]
[White "Chesscoach_Golichenko"]
[Black "lateforthesky"]
[Result "1-0"]
[WhiteElo "2623"]
[BlackElo "2108"]
[TimeControl "300"]
[EndTime "6:52:21 PDT"]
[Termination "Chesscoach_Golichenko won by resignation"]

1. d4 {[%clk 0:04:57.3]} 1... Nf6 {[%clk 0:04:58.2]} 2. c4 {[%clk 0:04:53.8]}
2... g6 {[%clk 0:04:57.2]} 3. Nc3 {[%clk 0:04:52.5]} 3... Bg7 {[%clk 0:04:56.4]}
4. e4 {[%clk 0:04:51]} 4... d6 {[%clk 0:04:56]} 5. Be2 {[%clk 0:04:49.9]} 5...
O-O {[%clk 0:04:54.7]} 6. Bg5 {[%clk 0:04:44.4]} 6... Na6 {[%clk 0:04:53.1]} 7.
Qd2 {[%clk 0:04:43.3]} 7... c5 {[%clk 0:04:52]} 8. d5 {[%clk 0:04:38]} 8... e6
{[%clk 0:04:50.9]} 9. h3 {[%clk 0:04:36.8]} 9... Nc7 {[%clk 0:04:49.9]} 10. Nf3
{[%clk 0:04:33.8]} 10... exd5 {[%clk 0:04:49]} 11. exd5 {[%clk 0:04:32.8]} 11...
Re8 {[%clk 0:04:42.8]} 12. O-O {[%clk 0:04:31.2]} 12... a6 {[%clk 0:04:40]} 13.
a4 {[%clk 0:04:29.6]} 13... b6 {[%clk 0:04:39]} 14. Bd3 {[%clk 0:04:22.3]} 14...
Rb8 {[%clk 0:04:37.1]} 15. Rae1 {[%clk 0:04:19.3]} 15... Bd7 {[%clk 0:04:34.1]}
16. Rxe8+ {[%clk 0:04:15]} 16... Qxe8 {[%clk 0:04:30.9]} 17. Re1 {[%clk
0:04:14.1]} 17... Qf8 {[%clk 0:04:29.9]} 18. g4 {[%clk 0:04:10.9]} 18... b5
{[%clk 0:04:25.7]} 19. Qf4 {[%clk 0:04:06]} 19... bxc4 {[%clk 0:04:02.5]} 20.
Bxc4 {[%clk 0:04:02.2]} 20... Nce8 {[%clk 0:03:51.7]} 21. Qd2 {[%clk 0:03:37]}
21... h6 {[%clk 0:03:48.6]} 22. Bf4 {[%clk 0:03:35.3]} 22... Nc7 {[%clk
0:03:37.1]} 23. b3 {[%clk 0:03:27]} 23... Kh7 {[%clk 0:03:34.6]} 24. Qd3 {[%clk
0:03:21.1]} 24... Re8 {[%clk 0:03:00.1]} 25. Rxe8 {[%clk 0:03:12.9]} 25... Nfxe8
{[%clk 0:02:58.4]} 26. Ne4 {[%clk 0:03:06.7]} 26... Qe7 {[%clk 0:02:55.3]} 27.
Nxc5 {[%clk 0:02:59.4]} 27... dxc5 {[%clk 0:02:45.7]} 28. d6 {[%clk 0:02:58.3]}
28... Qf6 {[%clk 0:02:38.5]} 29. Be5 {[%clk 0:02:53.4]} 29... Qd8 {[%clk
0:02:34.5]} 30. dxc7 {[%clk 0:02:51.7]} 30... Nxc7 {[%clk 0:02:33.1]} 31. Bxf7
{[%clk 0:02:47]} 31... Ne8 {[%clk 0:02:21.9]} 32. Qxg6+ {[%clk 0:02:39.5]} 1-0

[Event "Live Chess"]
[Site "Chess.com"]
[Date "2023.05.21"]
[Round "-"]
[White "Alfiedog12"]
[Black "manthanit"]
[Result "0-1"]
[WhiteElo "891"]
[BlackElo "1085"]
[TimeControl "300"]
[EndTime "6:52:23 PDT"]
[Termination "manthanit won by resignation"]

1. d4 {[%clk 0:04:58.9]} 1... e6 {[%clk 0:04:33.9]} 2. Bf4 {[%clk 0:04:56.7]}
2... d6 {[%clk 0:04:32]} 3. Nf3 {[%clk 0:04:56.2]} 3... g6 {[%clk 0:04:29.7]} 4.
e3 {[%clk 0:04:55.6]} 4... Bg7 {[%clk 0:04:29.2]} 5. Bd3 {[%clk 0:04:51.9]} 5...
h6 {[%clk 0:04:25.6]} 6. c3 {[%clk 0:04:50.4]} 6... Ne7 {[%clk 0:04:24.6]} 7.
Qc2 {[%clk 0:04:44.8]} 7... O-O {[%clk 0:04:23.2]} 8. Nbd2 {[%clk 0:04:38.7]}
8... b6 {[%clk 0:04:20]} 9. O-O-O {[%clk 0:04:36.7]} 9... Bb7 {[%clk 0:04:18.9]}
10. e4 {[%clk 0:04:20.5]} 10... Nd7 {[%clk 0:04:15.8]} 11. Rde1 {[%clk
0:04:12.5]} 11... a6 {[%clk 0:04:14.4]} 12. g4 {[%clk 0:03:58.2]} 12... e5
{[%clk 0:04:06.9]} 13. Bg3 {[%clk 0:03:52.3]} 13... exd4 {[%clk 0:03:54.4]} 14.
Nxd4 {[%clk 0:03:42]} 14... Ne5 {[%clk 0:03:49.1]} 15. Bxe5 {[%clk 0:03:36.7]}
15... Bxe5 {[%clk 0:03:46.3]} 16. N4f3 {[%clk 0:03:20.8]} 16... Bg7 {[%clk
0:03:43.5]} 17. h4 {[%clk 0:03:12.7]} 17... d5 {[%clk 0:03:32.7]} 18. e5 {[%clk
0:03:08.7]} 18... Nc6 {[%clk 0:03:24.4]} 19. e6 {[%clk 0:02:56.3]} 19... fxe6
{[%clk 0:03:22.3]} 20. Rxe6 {[%clk 0:02:49.5]} 20... Rf6 {[%clk 0:03:11.3]} 21.
Rxf6 {[%clk 0:02:40.6]} 21... Qxf6 {[%clk 0:03:10.1]} 22. g5 {[%clk 0:02:32.3]}
22... Qf7 {[%clk 0:02:38.6]} 23. Bxg6 {[%clk 0:02:24]} 23... Qe6 {[%clk
0:02:29.9]} 24. Bh7+ {[%clk 0:02:14.2]} 24... Kh8 {[%clk 0:02:26.1]} 25. Rg1
{[%clk 0:02:00.6]} 25... Rf8 {[%clk 0:02:20.2]} 26. gxh6 {[%clk 0:01:41.8]}
26... Bxh6 {[%clk 0:02:18.7]} 27. Bg6 {[%clk 0:01:28.3]} 27... Rxf3 {[%clk
0:02:08.9]} 28. h5 {[%clk 0:01:18.1]} 28... Rxf2 {[%clk 0:02:01.6]} 29. Kb1
{[%clk 0:01:15.4]} 29... Rxd2 {[%clk 0:01:58]} 30. Qf5 {[%clk 0:00:56.8]} 30...
Qxf5+ {[%clk 0:01:55.1]} 31. Bxf5 {[%clk 0:00:55.5]} 31... Ne7 {[%clk
0:01:47.2]} 32. Be6 {[%clk 0:00:45.3]} 32... Bc8 {[%clk 0:01:43.5]} 33. Bf7
{[%clk 0:00:30.5]} 33... Re2 {[%clk 0:01:36.2]} 34. Rd1 {[%clk 0:00:21.8]} 34...
Be6 {[%clk 0:01:33.2]} 35. Bxe6 {[%clk 0:00:18.9]} 35... Rxe6 {[%clk 0:01:31.8]}
36. Rf1 {[%clk 0:00:15.7]} 36... Re5 {[%clk 0:01:29.1]} 37. Rf8+ {[%clk
0:00:14.3]} 37... Bxf8 {[%clk 0:01:27.4]} 0-1

[Event "Live Chess"]
[Site "Chess.com"]
[Date "2023.05.21"]
[Round "-"]
[White "WelshTiger"]
[Black "Olisingapore"]
[Result "1-0"]
[WhiteElo "2327"]
[BlackElo "1785"]
[TimeControl "300"]
[EndTime "6:52:42 PDT"]
[Termination "WelshTiger won by resignation"]

1. e4 {[%clk 0:04:58.7]} 1... c5 {[%clk 0:04:58.9]} 2. Nf3 {[%clk 0:04:57.9]}
2... d6 {[%clk 0:04:58.5]} 3. d4 {[%clk 0:04:56.1]} 3... cxd4 {[%clk 0:04:58.4]}
4. Nxd4 {[%clk 0:04:55.5]} 4... Nf6 {[%clk 0:04:58.2]} 5. Nc3 {[%clk 0:04:54.9]}
5... a6 {[%clk 0:04:57.8]} 6. h4 {[%clk 0:04:54.3]} 6... e5 {[%clk 0:04:56.2]}
7. Nb3 {[%clk 0:04:47.1]} 7... Be6 {[%clk 0:04:46.8]} 8. f4 {[%clk 0:04:46]}
8... g6 {[%clk 0:04:42.6]} 9. fxe5 {[%clk 0:04:29.4]} 9... dxe5 {[%clk
0:04:39.5]} 10. Qxd8+ {[%clk 0:04:28.1]} 10... Kxd8 {[%clk 0:04:37.1]} 11. Bg5
{[%clk 0:04:27.7]} 11... Bg7 {[%clk 0:04:33.1]} 12. O-O-O+ {[%clk 0:04:26.5]}
12... Nd7 {[%clk 0:04:25.6]} 13. Nc5 {[%clk 0:04:21.4]} 13... Ke7 {[%clk
0:04:22.4]} 14. Nxd7 {[%clk 0:03:57.6]} 14... Rad8 {[%clk 0:04:18.3]} 15. Nxf6
{[%clk 0:03:51.8]} 15... Rxd1+ {[%clk 0:04:14]} 16. Nxd1 {[%clk 0:03:50.7]}
16... Bxf6 {[%clk 0:04:13.9]} 17. Bxf6+ {[%clk 0:03:49.5]} 17... Kxf6 {[%clk
0:04:13.2]} 18. Ne3 {[%clk 0:03:48.4]} 18... Rd8 {[%clk 0:04:10]} 19. Bc4 {[%clk
0:03:46]} 19... b5 {[%clk 0:04:07.5]} 20. Bxe6 {[%clk 0:03:44.9]} 20... fxe6
{[%clk 0:04:07.4]} 21. Rf1+ {[%clk 0:03:42.8]} 21... Kg7 {[%clk 0:04:05.8]} 22.
Rd1 {[%clk 0:03:42.2]} 22... Rxd1+ {[%clk 0:04:01.1]} 23. Kxd1 {[%clk 0:03:41]}
23... h5 {[%clk 0:04:00.3]} 24. c4 {[%clk 0:03:38.3]} 24... bxc4 {[%clk
0:03:58]} 25. Nxc4 {[%clk 0:03:37.5]} 25... Kf6 {[%clk 0:03:57.5]} 26. Kd2
{[%clk 0:03:36.5]} 26... g5 {[%clk 0:03:56.4]} 27. g3 {[%clk 0:03:34.2]} 27...
gxh4 {[%clk 0:03:54.4]} 28. gxh4 {[%clk 0:03:33.3]} 28... Ke7 {[%clk 0:03:54]}
29. Nxe5 {[%clk 0:03:31.6]} 29... Kd6 {[%clk 0:03:53.7]} 30. Nd3 {[%clk
0:03:29.4]} 1-0

[Event "Live Chess"]
[Site "Chess.com"]
[Date "2023.05.21"]
[Round "-"]
[White "JoeRoot66"]
[Black "zdanevych"]
[Result "1-0"]
[WhiteElo "1896"]
[BlackElo "1496"]
[TimeControl "300"]
[EndTime "6:52:45 PDT"]
[Termination "JoeRoot66 won by resignation"]

1. e4 {[%clk 0:04:57.3]} 1... c5 {[%clk 0:04:58]} 2. c3 {[%clk 0:04:56.5]} 2...
e6 {[%clk 0:04:57.5]} 3. d4 {[%clk 0:04:55.9]} 3... d5 {[%clk 0:04:57]} 4. exd5
{[%clk 0:04:55]} 4... exd5 {[%clk 0:04:56.5]} 5. Nf3 {[%clk 0:04:53.2]} 5... Nc6
{[%clk 0:04:54.5]} 6. Bb5 {[%clk 0:04:52.8]} 6... a6 {[%clk 0:04:53.4]} 7. Bxc6+
{[%clk 0:04:51]} 7... bxc6 {[%clk 0:04:53.3]} 8. O-O {[%clk 0:04:50.5]} 8... Bg4
{[%clk 0:04:52]} 9. Re1+ {[%clk 0:04:49.8]} 9... Be7 {[%clk 0:04:51.4]} 10. Qa4
{[%clk 0:04:47.7]} 10... Bxf3 {[%clk 0:04:24.8]} 11. Qxc6+ {[%clk 0:04:45.9]}
11... Kf8 {[%clk 0:04:24]} 12. gxf3 {[%clk 0:04:43.3]} 12... Nf6 {[%clk
0:04:23.2]} 13. Bf4 {[%clk 0:04:33.2]} 13... cxd4 {[%clk 0:04:20.6]} 14. cxd4
{[%clk 0:04:31.5]} 14... h6 {[%clk 0:04:09.9]} 15. Nc3 {[%clk 0:04:29.6]} 15...
g5 {[%clk 0:04:08.8]} 16. Be5 {[%clk 0:04:25.5]} 16... Kg7 {[%clk 0:03:55.1]}
17. Nxd5 {[%clk 0:04:20.5]} 17... Kg6 {[%clk 0:03:52.8]} 18. Nxe7+ {[%clk
0:04:16.9]} 18... Qxe7 {[%clk 0:03:51.8]} 19. Bxf6 {[%clk 0:04:16.1]} 19... Qxf6
{[%clk 0:03:51.3]} 20. Qxf6+ {[%clk 0:04:02.8]} 20... Kxf6 {[%clk 0:03:50.2]}
21. Rad1 {[%clk 0:04:01.8]} 21... Rhd8 {[%clk 0:03:44.4]} 22. d5 {[%clk
0:04:01]} 22... Rd6 {[%clk 0:03:42.7]} 23. b3 {[%clk 0:03:58.4]} 23... Rad8
{[%clk 0:03:41.6]} 24. Re4 {[%clk 0:03:50.1]} 24... Rxd5 {[%clk 0:03:39.5]} 25.
Rxd5 {[%clk 0:03:49.2]} 25... Rxd5 {[%clk 0:03:39.4]} 26. Ra4 {[%clk 0:03:48.5]}
26... Rd6 {[%clk 0:03:34.4]} 27. Kf1 {[%clk 0:03:45.8]} 27... Ke6 {[%clk
0:03:33.4]} 28. Ke2 {[%clk 0:03:45]} 28... f5 {[%clk 0:03:31.1]} 29. Ke3 {[%clk
0:03:44.5]} 29... Kd7 {[%clk 0:03:30.6]} 30. Rd4 {[%clk 0:03:42.1]} 30... Rxd4
{[%clk 0:03:23.8]} 31. Kxd4 {[%clk 0:03:42]} 31... Kd6 {[%clk 0:03:23.6]} 32. a3
{[%clk 0:03:40.6]} 32... h5 {[%clk 0:03:18.6]} 33. b4 {[%clk 0:03:37.1]} 33...
g4 {[%clk 0:03:17.9]} 34. fxg4 {[%clk 0:03:36.3]} 34... fxg4 {[%clk 0:03:17.8]}
35. Ke4 {[%clk 0:03:34.8]} 35... h4 {[%clk 0:03:15.4]} 36. Kf4 {[%clk
0:03:34.1]} 36... g3 {[%clk 0:03:13.9]} 37. fxg3 {[%clk 0:03:33.7]} 37... hxg3
{[%clk 0:03:13.7]} 38. hxg3 {[%clk 0:03:33.5]} 38... Kc6 {[%clk 0:03:12.8]} 39.
a4 {[%clk 0:03:31.8]} 1-0

[Event "Live Chess"]
[Site "Chess.com"]
[Date "2023.05.21"]
[Round "-"]
[White "Hacker_2009"]
[Black "Doge_Dandolo"]
[Result "1-0"]
[WhiteElo "1933"]
[BlackElo "1898"]
[TimeControl "300"]
[EndTime "6:52:48 PDT"]
[Termination "Hacker_2009 won by resignation"]

1. d4 {[%clk 0:04:56.8]} 1... d5 {[%clk 0:04:57]} 2. Nf3 {[%clk 0:04:56.1]} 2...
Nf6 {[%clk 0:04:54.6]} 3. e4 {[%clk 0:04:55.5]} 3... dxe4 {[%clk 0:04:53]} 4.
Nfd2 {[%clk 0:04:53.5]} 4... Bf5 {[%clk 0:04:51.1]} 5. c4 {[%clk 0:04:50.1]}
5... e6 {[%clk 0:04:50]} 6. Nc3 {[%clk 0:04:48.8]} 6... c6 {[%clk 0:04:46.9]} 7.
g3 {[%clk 0:04:46.4]} 7... Be7 {[%clk 0:04:43.1]} 8. Bg2 {[%clk 0:04:45.5]} 8...
O-O {[%clk 0:04:41.5]} 9. Ndxe4 {[%clk 0:04:44.8]} 9... Nxe4 {[%clk 0:04:40.2]}
10. Nxe4 {[%clk 0:04:44.3]} 10... Nd7 {[%clk 0:04:38.3]} 11. O-O {[%clk
0:04:42.9]} 11... Nf6 {[%clk 0:04:37.1]} 12. Re1 {[%clk 0:04:18.6]} 12... Nxe4
{[%clk 0:04:34.3]} 13. Bxe4 {[%clk 0:04:16.5]} 13... Bxe4 {[%clk 0:04:33.5]} 14.
Rxe4 {[%clk 0:04:15.6]} 14... Bf6 {[%clk 0:04:33]} 15. b3 {[%clk 0:04:14]} 15...
c5 {[%clk 0:04:26.7]} 16. Bb2 {[%clk 0:04:12.4]} 16... cxd4 {[%clk 0:04:25.3]}
17. Bxd4 {[%clk 0:04:10.5]} 17... Qe7 {[%clk 0:04:21.8]} 18. Bxf6 {[%clk
0:04:09.2]} 18... Qxf6 {[%clk 0:04:19.4]} 19. Rd4 {[%clk 0:04:08.1]} 19... Rfd8
{[%clk 0:04:16.9]} 20. Rxd8+ {[%clk 0:04:02.3]} 20... Rxd8 {[%clk 0:04:15.3]}
21. Qe1 {[%clk 0:03:58.4]} 21... h5 {[%clk 0:04:10]} 22. Rd1 {[%clk 0:03:56.8]}
22... Kf8 {[%clk 0:03:59.1]} 23. Rd2 {[%clk 0:03:50.6]} 23... Rxd2 {[%clk
0:03:56.8]} 24. Qxd2 {[%clk 0:03:49.7]} 24... Ke8 {[%clk 0:03:51.7]} 25. a4
{[%clk 0:03:33.5]} 25... Qe5 {[%clk 0:03:41.4]} 26. Qe3 {[%clk 0:03:29.6]} 26...
Qxe3 {[%clk 0:03:28.2]} 27. fxe3 {[%clk 0:03:26.2]} 27... a5 {[%clk 0:03:27.8]}
28. Kf2 {[%clk 0:03:24.7]} 28... Kd7 {[%clk 0:03:27.4]} 29. e4 {[%clk
0:03:24.3]} 29... Kc6 {[%clk 0:03:25.8]} 30. Ke3 {[%clk 0:03:23.8]} 30... Kc5
{[%clk 0:03:24.8]} 31. Kd3 {[%clk 0:03:15.7]} 31... Kb4 {[%clk 0:03:23.5]} 32.
Kc2 {[%clk 0:03:14.8]} 32... e5 {[%clk 0:03:18.2]} 33. h3 {[%clk 0:03:05.3]}
33... g5 {[%clk 0:03:15.2]} 34. g4 {[%clk 0:03:04.4]} 34... hxg4 {[%clk
0:03:13]} 35. hxg4 {[%clk 0:03:03.4]} 35... b6 {[%clk 0:03:10.2]} 36. Kb2 {[%clk
0:03:02.3]} 36... f6 {[%clk 0:03:04]} 37. Kc2 {[%clk 0:03:01.1]} 37... Kc5
{[%clk 0:03:02.1]} 38. Kc3 {[%clk 0:03:00.1]} 38... Kc6 {[%clk 0:02:55.6]} 39.
b4 {[%clk 0:02:56.6]} 39... axb4+ {[%clk 0:02:54.5]} 40. Kxb4 {[%clk 0:02:54.8]}
40... Kb7 {[%clk 0:02:51.1]} 41. Kb5 {[%clk 0:02:53.5]} 41... Kc7 {[%clk
0:02:50.1]} 42. c5 {[%clk 0:02:50.2]} 42... bxc5 {[%clk 0:02:49]} 43. Kxc5
{[%clk 0:02:50.1]} 43... Kd7 {[%clk 0:02:47.8]} 44. a5 {[%clk 0:02:48.4]} 1-0

[Event "Live Chess"]
[Site "Chess.com"]
[Date "2023.05.21"]
[Round "-"]
[White "bedsdrout"]
[Black "educatedlad"]
[Result "1-0"]
[WhiteElo "1399"]
[BlackElo "1622"]
[TimeControl "300"]
[EndTime "6:52:57 PDT"]
[Termination "bedsdrout won by checkmate"]

1. e3 {[%clk 0:04:48.4]} 1... e6 {[%clk 0:04:59.9]} 2. Nf3 {[%clk 0:04:46.6]}
2... d5 {[%clk 0:04:59.8]} 3. Be2 {[%clk 0:04:44.2]} 3... c5 {[%clk 0:04:58.1]}
4. O-O {[%clk 0:04:41.1]} 4... Nf6 {[%clk 0:04:56.6]} 5. b3 {[%clk 0:04:38.1]}
5... Nc6 {[%clk 0:04:55.7]} 6. Nc3 {[%clk 0:04:35.8]} 6... Bd6 {[%clk
0:04:54.4]} 7. d4 {[%clk 0:04:31.4]} 7... O-O {[%clk 0:04:51.8]} 8. dxc5 {[%clk
0:04:28.8]} 8... Bxc5 {[%clk 0:04:49.9]} 9. Bb2 {[%clk 0:04:26.6]} 9... Re8
{[%clk 0:04:49]} 10. Na4 {[%clk 0:04:24]} 10... Bd6 {[%clk 0:04:47.2]} 11. c4
{[%clk 0:04:18.2]} 11... Ne7 {[%clk 0:04:27.3]} 12. c5 {[%clk 0:04:13.8]} 12...
Bc7 {[%clk 0:04:22.7]} 13. Ne5 {[%clk 0:03:34.1]} 13... Nc6 {[%clk 0:04:19.7]}
14. Ng4 {[%clk 0:03:30.7]} 14... e5 {[%clk 0:04:14.4]} 15. Nxf6+ {[%clk
0:03:23.1]} 15... Qxf6 {[%clk 0:04:12.9]} 16. Qxd5 {[%clk 0:02:43.2]} 16... Be6
{[%clk 0:04:01.9]} 17. Qf3 {[%clk 0:02:36]} 17... Qg6 {[%clk 0:04:00]} 18. Qg3
{[%clk 0:02:10.4]} 18... Qf6 {[%clk 0:03:47.7]} 19. Rad1 {[%clk 0:02:08]} 19...
Rad8 {[%clk 0:03:45.5]} 20. Nc3 {[%clk 0:02:02.3]} 20... Rc8 {[%clk 0:03:33.8]}
21. Ne4 {[%clk 0:01:55.7]} 21... Qh6 {[%clk 0:03:29.8]} 22. Bf3 {[%clk
0:01:51.1]} 22... Bf5 {[%clk 0:03:27.4]} 23. Nd6 {[%clk 0:01:47.7]} 23... Bxd6
{[%clk 0:03:20.8]} 24. cxd6 {[%clk 0:01:45.4]} 24... e4 {[%clk 0:03:16.9]} 25.
d7 {[%clk 0:01:40.4]} 25... exf3 {[%clk 0:03:12.2]} 26. dxe8=Q+ {[%clk
0:01:36.5]} 26... Rxe8 {[%clk 0:03:10.7]} 27. Rd6 {[%clk 0:01:34.3]} 27... Re6
{[%clk 0:03:00.9]} 28. Rd7 {[%clk 0:01:32.4]} 28... Rg6 {[%clk 0:02:56.2]} 29.
Qb8+ {[%clk 0:01:30.2]} 29... Nxb8 {[%clk 0:02:48.8]} 30. Rd8# {[%clk
0:01:29.2]} 1-0

[Event "Live Chess"]
[Site "Chess.com"]
[Date "2023.05.21"]
[Round "-"]
[White "friarnator"]
[Black "Long1968"]
[Result "1-0"]
[WhiteElo "2042"]
[BlackElo "958"]
[TimeControl "300"]
[EndTime "6:53:06 PDT"]
[Termination "friarnator won on time"]

1. e4 {[%clk 0:04:58]} 1... e6 {[%clk 0:04:56.9]} 2. d4 {[%clk 0:04:54.8]} 2...
d5 {[%clk 0:04:55.6]} 3. Nc3 {[%clk 0:04:51.9]} 3... Bb4 {[%clk 0:04:51]} 4. e5
{[%clk 0:04:50.8]} 4... c5 {[%clk 0:04:48.6]} 5. a3 {[%clk 0:04:50]} 5... cxd4
{[%clk 0:04:46.5]} 6. axb4 {[%clk 0:04:44.8]} 6... dxc3 {[%clk 0:04:43.8]} 7.
Qg4 {[%clk 0:04:43.5]} 7... Ne7 {[%clk 0:04:33.1]} 8. Qxg7 {[%clk 0:04:39.8]}
8... Ng6 {[%clk 0:04:16.9]} 9. Bd3 {[%clk 0:04:34.7]} 9... Rf8 {[%clk
0:03:25.7]} 10. Bh6 {[%clk 0:04:28.2]} 10... Qe7 {[%clk 0:03:13.6]} 11. Bxg6
{[%clk 0:04:26.1]} 11... fxg6 {[%clk 0:03:04.1]} 12. Qxf8+ {[%clk 0:04:23.8]}
12... Qxf8 {[%clk 0:02:59.9]} 13. Bxf8 {[%clk 0:04:23.7]} 13... Kxf8 {[%clk
0:02:55.2]} 14. bxc3 {[%clk 0:04:22.6]} 14... Nc6 {[%clk 0:02:47.9]} 15. f4
{[%clk 0:04:21.2]} 15... Bd7 {[%clk 0:02:39]} 16. Nf3 {[%clk 0:04:19.5]} 16...
Rc8 {[%clk 0:02:29.7]} 17. Kd2 {[%clk 0:04:14.9]} 17... a6 {[%clk 0:02:23.8]}
18. Nd4 {[%clk 0:04:04.9]} 18... Ne7 {[%clk 0:02:03.4]} 19. g4 {[%clk
0:04:01.9]} 19... Kg7 {[%clk 0:01:56]} 20. Raf1 {[%clk 0:03:55.8]} 20... Rf8
{[%clk 0:01:49.5]} 21. h4 {[%clk 0:03:52.9]} 21... h6 {[%clk 0:01:24.5]} 22. h5
{[%clk 0:03:29.5]} 22... gxh5 {[%clk 0:00:49.4]} 23. Rxh5 {[%clk 0:03:27.2]}
23... Ng6 {[%clk 0:00:44]} 24. Ke3 {[%clk 0:03:25.3]} 24... Bb5 {[%clk
0:00:15.4]} 25. Rfh1 {[%clk 0:03:17.5]} 1-0